Cogmind - Beta 12 @@@ ROGUE MODE // 2023.09.18 @ 00:54:24 Player: DuckBoy Result: Escaped! Performance ------------- Evolutions (9) 4500 Regions Visited (26) 5200 Robots Destroyed (375) 1875 Value Destroyed (14530) 14530 Prototype IDs (68) 1360 Alien Tech Used (0) 0 Bonus (8871) 8871 TOTAL SCORE: 36336 Bonus ------- High Alert Combat Kills 1765 Follower Combat Kills 1327 Entered Garrisons 800 Used RIF Installer 2000 Aligned with FarCom 300 Met Data Miner 300 Win 3000 Friendly Fire -621 Cogmind --------- Core Integrity 1355/1600 Matter 270/300 Energy 82/150 System Corruption 14% Temperature Cool (12) Movement Hovering (55) Location To Epsilon Eridani Parts ------- > --- POWER (3) -------- Micro Antimatter Reactor > --- PROPULSION (8) --- Improved Antigrav System Improved Antigrav System Improved Gyrokinetic Inverter > --- UTILITY (10) ----- Advanced Heat Sink Advanced Heat Sink Advanced Heat Sink Core Analyzer Improved Transmission Jammer Improved System Shield Improved System Shield Improved System Shield Relay Coupler [Hunter] (2) > --- WEAPON (4) ------- Gamma Rifle Gamma Rifle Cooled Phase Gun Force Lance > --- INVENTORY (5) ---- Advanced Heat Sink Advanced ECM Suite Enhanced Nova Cannon Enhanced Nova Cannon Micro-nuke Launcher Peak State ------------ > --- POWER ------------ Micro Fission Core Micro Fission Core Antimatter Reactor > --- PROPULSION ------- Improved Gyrokinetic Inverter Improved Gyrokinetic Inverter Improved Gyrokinetic Inverter Improved Gyrokinetic Inverter Antigrav Array > --- UTILITY ---------- Advanced Cooling System Large Storage Unit Experimental Optical Array Advanced Targeting Computer Advanced Transmission Jammer Graphene Brace Advanced Hacking Suite Improved System Shield Improved Corruption Screen > --- WEAPON ----------- Compact HERF Cannon Compact HERF Cannon Nova Cannon > --- INVENTORY -------- Cooled Gravmag System Improved Linear Gravjet Advanced ECM Suite Cloaking Device Advanced System Restoration Module Improved Arc Projector Long-range Proton Cannon Nova Cannon Hardcell Cannon Hardcell Cannon Heavy Gauss Cannon Tesla Bomb Launcher Tiamat Missile Launcher Improved Remote Datajack Force Lance [Rating: 145] Favorites ----------- Power Micro Nuclear Core Engine Light Angular Momentum Engine Power Core Micro Nuclear Core Reactor Micro Antimatter Reactor Propulsion Improved Gyrokinetic Inverter Treads Light Treads Leg Improved Titanium Leg Wheel Wheel Hover Unit Improved Gyrokinetic Inverter Flight Unit Impulse Thruster Array Utility Large Storage Unit Device Advanced Cooling System Storage Large Storage Unit Processor Advanced Targeting Computer Hackware Hacking Suite Weapon Improved Lightning Gun Energy Gun Improved Lightning Gun Energy Cannon Compact HERF Cannon Ballistic Gun Enhanced Autogun Ballistic Cannon Hypervelocity Gauss Cannon Launcher Proton Missile Launcher Special Weapon Remote Datajack Slashing Weapon Chainsword Piercing Weapon Force Lance Special Melee Weapon Improved Datajack Build | -11 -10 -10 -10 -9 -8 -8 -8 -7 -7 -7 -7 -7 -7 -6 -6 -6 -6 -5 -4 -3 -3 -3 -3 -2 -2 -1 ------- Run | Jun Mat Min Exi Min Mat Gar Mat Fac Was Fac Low Low Dat Pro Fac Was Fac Fac Fac Res Gar Res Gar Res Gar Acc Slots Evolved 18 | . . . . . 4 . . 2 . . . . . . 2 . . 2 2 2 . . . 2 . 2 Power 2 | . . . . . 1 . . . . . . . . . . . . 1 . . . . . . . . Propulsion 6 | . . . . . 1 . . 1 . . . . . . 1 . . 1 . . . . . 1 . 1 Utility 8 | . . . . . 1 . . 1 . . . . . . 1 . . . 2 2 . . . 1 . . Weapon 2 | . . . . . 1 . . . . . . . . . . . . . . . . . . . . 1 Parts Attached 621 | 7 13 8 1 . 40 31 17 80 3 12 6 . . 17 70 . 26 107 83 7 3 38 25 2 1 24 Power 74 | 1 3 1 . . 6 7 4 11 . . . . . 3 7 . 2 9 12 1 . 3 3 . . 1 Engine 23 | 1 3 . . . 4 5 . 1 . . . . . 1 3 . 2 . . . . 2 1 . . . Core 43 | . . 1 . . 2 2 4 10 . . . . . 1 4 . . 9 9 . . . 1 . . . Reactor 8 | . . . . . . . . . . . . . . 1 . . . . 3 1 . 1 1 . . 1 Propulsion 88 | 2 6 1 . . 6 3 1 16 . . 2 . . 2 13 . . 6 9 1 . 14 2 . . 4 Treads 6 | . 4 . . . 2 . . . . . . . . . . . . . . . . . . . . . Leg 3 | . . . . . 3 . . . . . . . . . . . . . . . . . . . . . Wheel 13 | 2 2 1 . . 1 . . . . . . . . . . . . . . . . 6 . . . 1 Hover 65 | . . . . . . 3 1 16 . . 2 . . 2 13 . . 6 9 1 . 8 2 . . 2 Flight 1 | . . . . . . . . . . . . . . . . . . . . . . . . . . 1 Utility 177 | 1 1 1 1 . 14 3 3 4 2 1 3 . . 5 16 . 13 45 27 3 2 10 10 1 . 11 Device 138 | . . 1 . . 13 3 1 1 1 . 2 . . 4 14 . 12 41 23 1 2 7 5 . . 7 Storage 8 | 1 1 . 1 . . . 1 . . 1 . . . 1 . . . . . . . 2 . . . . Processor 11 | . . . . . 1 . . . . . . . . . 1 . 1 2 2 2 . 1 . . . 1 Hackware 20 | . . . . . . . 1 3 1 . 1 . . . 1 . . 2 2 . . . 5 1 . 3 Protection . | . . . . . . . . . . . . . . . . . . . . . . . . . . . Artifact . | . . . . . . . . . . . . . . . . . . . . . . . . . . . Weapon 282 | 3 3 5 . . 14 18 9 49 1 11 1 . . 7 34 . 11 47 35 2 1 11 10 1 1 8 Energy Gun 79 | 1 . 4 . . 4 6 1 10 . 4 . . . 1 13 . 4 24 2 1 . 1 . . . 3 Energy Cannon 55 | . . . . . . . . 2 . 1 . . . 2 2 . 4 14 17 . 1 4 4 . 1 3 Ballistic Gun 25 | 2 3 1 . . 6 6 4 3 . . . . . . . . . . . . . . . . . . Ballistic Cannon 65 | . . . . . 2 1 . 23 1 . . . . 3 9 . 1 4 14 . . 3 3 . . 1 Launcher 24 | . . . . . 2 3 1 1 . . 1 . . 1 6 . 1 3 2 . . 3 . . . . Special Weapon 8 | . . . . . . . . . . 2 . . . . 1 . . 2 . . . . 2 1 . . Impact Weapon . | . . . . . . . . . . . . . . . . . . . . . . . . . . . Slashing Weapon 18 | . . . . . . 2 . 8 . 4 . . . . 3 . 1 . . . . . . . . . Piercing Weapon 3 | . . . . . . . . . . . . . . . . . . . . 1 . . 1 . . 1 Special Melee Weapon 5 | . . . . . . . 3 2 . . . . . . . . . . . . . . . . . . Unidentified Prototypes 28 | . . . . . 4 . . 5 1 1 1 . . 2 3 . 2 2 3 . . 1 . . . 3 Corrupted Parts 9 | . . . . . . . . . . . . . . 5 . . . . . . . 2 2 . . . System Corruption 41 | . . . . . . . . . . . . . . 15 . . . . . . . 15 11 . . . Parts Lost 101 | . . . . . 2 4 4 12 . 2 3 1 . 6 9 . 2 5 10 4 . 17 3 . 3 14 Power 23 | . . . . . 1 3 1 2 . . . . . 1 2 . 2 3 1 1 . 3 . . . 3 Propulsion 21 | . . . . . . . 1 2 . . 2 . . 3 . . . . 1 1 . 5 2 . 1 3 Utility 26 | . . . . . 1 . 1 1 . 1 . 1 . 1 2 . . 1 5 . . 4 . . 2 6 Weapon 31 | . . . . . . 1 1 7 . 1 1 . . 1 5 . . 1 3 2 . 5 1 . . 2 Highest Loss Streak 14 | . . . . . 1 2 3 3 . 1 2 1 . 2 3 . 1 2 3 2 . 8 2 . 3 14 To Critical Strikes . | . . . . . . . . . . . . . . . . . . . . . . . . . . . Average Slot Usage (%) 92 | . 84 85 100 100 96 98 98 93 91 97 95 94 92 90 89 90 91 98 96 98 95 76 79 80 76 74 Engine 3 | . 14 4 . . 8 12 . . . . . . . 1 6 6 9 2 . . . 2 . . . . Core 9 | . . 9 14 14 9 5 17 14 15 15 15 15 15 7 3 6 1 13 12 12 9 3 3 4 4 3 Reactor 1 | . . . . . . . . . . . . . . 4 . . . . 2 1 4 2 8 8 8 7 Wheel 1 | . 10 18 28 28 15 . . . . . . . . . . . . . . . . 4 . . . . Hover 25 | . . . . . . 25 27 29 30 30 29 30 30 26 25 26 26 34 30 28 28 19 18 17 15 11 Device 7 | . . . 14 14 8 13 13 2 2 . 2 . . 10 12 10 5 4 12 9 10 9 9 8 8 12 Storage 6 | . 14 14 14 14 9 9 9 7 7 7 7 7 7 7 6 6 6 5 5 4 4 2 4 4 4 3 Processor 3 | . . . . . 6 4 . . . . . . . . . . 5 7 8 18 17 11 9 8 6 6 Hackware 10 | . . . . . . . 2 19 18 20 17 17 15 9 11 13 13 8 7 9 9 5 14 19 19 12 Energy Gun 7 | . 14 14 28 28 14 8 8 5 7 14 9 7 7 1 5 20 15 9 . 2 . . . . . . Energy Cannon 2 | . . . . . . . . . . . . . . 3 2 . 1 4 9 10 4 3 2 . 2 9 Ballistic Gun 2 | . 13 13 . . 11 11 15 1 . . . . . . . . . . . . . . . . . . Ballistic Cannon 1 | . . . . . . . . 4 . . . . . 7 2 . . . 3 . . 5 2 . . . Launcher 1 | . . . . . . 2 . . . . 3 7 7 5 3 . . . . . . . . . . . Slashing Weapon 1 | . . . . . . 4 1 4 7 2 . . . . 3 . 2 . . . . . . . . . Naked Turns . | . . . . . . . . . . . . . . . . . . . . . . . . . . . Heaviest Build 86 | 14 34 32 32 32 49 51 45 59 49 44 47 46 46 77 78 55 57 74 85 73 68 77 73 67 61 86 Greatest Support 74 | 20 40 20 20 20 60 60 36 50 48 48 48 47 47 47 56 56 56 74 74 71 69 74 68 56 56 44 Greatest Overweight (x) 5 | . 3 2 1 1 2 3 1 1 1 . 1 . . 2 4 . 1 2 1 1 . 3 1 1 1 5 Average Overweight (x) . | . . 1 1 1 1 . . . . . . . . . . . . . . . . . . . . . Largest Inventory Capacity 15 | 8 15 15 15 15 15 15 15 15 15 15 15 15 15 15 15 15 15 15 15 15 15 15 15 15 15 15 Average Capacity 14 | 7 8 15 15 15 15 15 15 15 15 15 15 15 15 15 15 15 15 15 15 15 15 12 15 15 15 13 Most Carried 15 | 6 10 15 15 14 15 15 15 15 15 15 15 15 15 15 15 14 15 15 15 15 13 15 15 14 15 15 Average Carried 13 | 2 7 13 14 14 14 13 13 12 14 14 14 15 15 14 14 14 14 14 13 14 11 10 14 13 14 13 Final Capacity 15 | 8 15 15 15 15 15 15 15 15 15 15 15 15 15 15 15 15 15 15 15 15 15 15 15 15 15 5 Final Carried 15 | 6 10 15 14 14 15 13 13 15 15 15 15 15 15 15 14 14 15 15 15 13 11 12 14 14 15 5 Class Distribution -------------------- 40% | Hacker-Mutant 17% | Scavenger-Mutant 13% | Machinist-Mutant 7% | Scavenger-Skirmisher 6% | Mutant 4% | Hacker-Skirmisher 3% | Bothacker-Mutant Dominant Class ---------------- Mutant | -10/Materials Mutant | -10/Mines Scavenger-Mutant | -10/Exiles Scavenger-Mutant | -9/Mines Scavenger-Skirmisher | -8/Materials Scavenger-Mutant | -8/Garrison Skirmisher | -8/Materials Hacker-Mutant | -7/Factory Hacker-Mutant | -7/Waste Hacker-Mutant | -7/Factory Hacker-Mutant | -7/Lower Caves Hacker-Mutant | -7/Lower Caves Hacker-Mutant | -7/Data Miner Scavenger-Mutant | -6/Proximity Caves Hacker-Mutant | -6/Factory Hacker-Skirmisher | -6/Waste Hacker-Mutant | -6/Factory Hacker-Mutant | -5/Factory Machinist-Mutant | -4/Factory Machinist-Mutant | -3/Research Hacker-Mutant | -3/Garrison Machinist-Mutant | -3/Research Scavenger-Mutant | -3/Garrison Scavenger-Mutant | -2/Research Bothacker-Mutant | -2/Garrison Bothacker-Mutant | -1/Access Resources | -11 -10 -10 -10 -9 -8 -8 -8 -7 -7 -7 -7 -7 -7 -6 -6 -6 -6 -5 -4 -3 -3 -3 -3 -2 -2 -1 ----------- Run | Jun Mat Min Exi Min Mat Gar Mat Fac Was Fac Low Low Dat Pro Fac Was Fac Fac Fac Res Gar Res Gar Res Gar Acc Matter Collected 12166 | 268 200 167 10 10 855 826 736 2123 184 135 95 30 . 436 1302 . 385 1243 1275 100 . 916 459 . . 411 Remotely . | . . . . . . . . . . . . . . . . . . . . . . . . . . . Salvage Created 18336 | . 239 170 . . 1609 1237 1258 2536 . 123 318 277 . 651 1845 . 964 2538 2301 205 . 1168 183 . . 714 Parts 875 | . 21 3 . . 82 58 71 145 . 11 11 14 . 24 103 . 47 105 82 5 . 54 15 . . 24 Haulers Intercepted 23 | . 1 . . . 4 1 1 5 . . 1 . . . 2 . 1 3 2 . . 1 . . . 1 Recyclers Shooed 11 | . 1 . . . . . 1 3 . . . . . . 1 . 1 2 2 . . . . . . . Parts Field Recycled . | . . . . . . . . . . . . . . . . . . . . . . . . . . . Retrieved Matter . | . . . . . . . . . . . . . . . . . . . . . . . . . . . Parts Self-Destructed 22 | . . . . . . . . . . . 2 10 . 10 . . . . . . . . . . . . Prevented 35 | . . . . . . . . . . . 12 8 . 15 . . . . . . . . . . . . Kills | -11 -10 -10 -10 -9 -8 -8 -8 -7 -7 -7 -7 -7 -7 -6 -6 -6 -6 -5 -4 -3 -3 -3 -3 -2 -2 -1 ------- Run | Jun Mat Min Exi Min Mat Gar Mat Fac Was Fac Low Low Dat Pro Fac Was Fac Fac Fac Res Gar Res Gar Res Gar Acc Combat Hostiles Destroyed 249 | . 8 4 . . 27 25 27 38 . . 3 6 . 11 21 . 10 22 23 2 . 13 5 . . 4 Melee 12 | . . . . . . 2 . 4 . . . . . . 2 . 2 . . . . . . . . 2 Guns 96 | . 8 4 . . 23 15 23 10 . . . . . 3 1 . 1 8 . . . . . . . . Cannons 71 | . . . . . . 1 . 21 . . . . . 4 8 . . 6 14 . . 10 5 . . 2 AOE 42 | . . . . . 4 6 4 3 . . 2 6 . 2 4 . 3 5 3 . . . . . . . Classes Destroyed 22 | . 4 . . . 10 1 1 1 . . . . . 2 1 . . . . . . 1 1 . . . Worker 24 | . . . . . 2 . . 2 . 3 . . . . 4 . 1 5 1 . . 6 . . . . Builder 7 | . . . . . 1 . . . . . . . . . 1 . 1 3 1 . . . . . . . Tunneler 5 | . 1 . . . . . . 1 . . . . . . 1 . 2 . . . . . . . . . Hauler 23 | . 1 . . . 4 1 1 5 . . 1 . . . 2 . 1 3 2 . . 1 . . . 1 Recycler 23 | . . . . . 2 . . 3 . 1 . . . . 1 . 3 5 4 . . 2 . . . 2 Mechanic 7 | . . . . . . . 1 2 . . 1 . . . 1 . . 2 . . . . . . . . Operator 6 | . . . . . 2 . 1 . . . . . . . 2 . . 1 . . . . . . . . Drone 1 | . . . . . . . . . . . . . . 1 . . . . . . . . . . . . Watcher 30 | . . . . . 4 . 2 6 . . . . . . 4 . . 7 6 . . . . . . 1 Swarmer 46 | . 6 . . . 5 6 5 8 . . . 2 . . 3 . 3 8 . . . . . . . . Cutter 4 | . . . . . . . . . . . . . . . . . . . . . . . 4 . . . Grunt 97 | . 2 4 . . 12 14 15 12 . . 3 2 . 4 5 . 3 3 8 . . 7 1 . . 2 Brawler 5 | . . . . . 1 . . 1 . . . . . . 2 . . 1 . . . . . . . . Duelist 3 | . . . . . 1 . 1 . . . . . . . 1 . . . . . . . . . . . Protector 2 | . . . . . 1 . 1 . . . . . . . . . . . . . . . . . . . Sentry 36 | . . . . . 6 2 4 9 . . . 1 . 1 3 . 2 2 3 2 . 1 . . . . Specialist 3 | . . . . . . 3 . . . . . . . . . . . . . . . . . . . . Hunter 9 | . . . . . 1 . 1 3 . . . 1 . 2 . . . 1 . . . . . . . . Programmer 39 | . . . . . . . . 5 . . . . . . 6 . 2 7 12 . . 4 1 . . 2 Heavy 1 | . . . . . . . . . . . . . . . . . . . . . . 1 . . . . Behemoth 1 | . . . . . . . . . . . . . . . 1 . . . . . . . . . . . Butcher 2 | . . . . . . . . . . . . . . 2 . . . . . . . . . . . . Mutant 1 | . . . . . . . . . . . . . . 1 . . . . . . . . . . . . Best Kill Streak 7 | . 4 2 . . 5 5 5 4 . 3 3 3 . 4 3 . 5 4 7 1 . 7 3 . . 3 Combat Bots Only 6 | . 4 2 . . 5 5 5 4 . . 3 3 . 4 3 . 3 4 6 1 . 4 3 . . 2 Max Kills in Single Turn 4 | . 1 1 . . 4 2 3 3 . 1 1 3 . 1 2 . 3 2 2 1 . 2 1 . . 2 Gunslinging . | . . . . . . . . . . . . . . . . . . . . . . . . . . . Exploded 4 | . . . . . 4 2 2 3 . . 1 3 . 1 2 . 2 2 1 . . . . . . . Melee 1 | . . . . . . 1 . 1 . . . . . . 1 . 1 . . . . . . . . 1 Uniques/NPCs Destroyed . | . . . . . . . . . . . . . . . . . . . . . . . . . . . Combat | -11 -10 -10 -10 -9 -8 -8 -8 -7 -7 -7 -7 -7 -7 -6 -6 -6 -6 -5 -4 -3 -3 -3 -3 -2 -2 -1 -------- Run | Jun Mat Min Exi Min Mat Gar Mat Fac Was Fac Low Low Dat Pro Fac Was Fac Fac Fac Res Gar Res Gar Res Gar Acc Damage Taken 15557 | . 232 279 . . 939 961 900 1998 . 105 434 112 . 816 1199 . 341 1181 1279 388 . 2134 591 22 202 1444 Core 2981 | . 46 61 . . 120 177 141 376 . . 31 18 . 204 136 . 87 288 205 51 . 605 120 . 70 245 Absorbed by Shields 388 | . . . . . . 286 59 43 . . . . . . . . . . . . . . . . . . Regen/Repaired (Parts) 1053 | . . . . . . . 72 274 127 74 160 55 . 20 198 . . 73 . . . . . . . . Core Remaining (%) 63 | 100 . . . 57 . . 20 . . . . . . 10 . . 73 71 82 . . . 40 . 95 84 Volleys Fired 1349 | . 30 25 . . 100 82 72 244 . 22 16 10 . 46 157 . 43 227 106 4 13 64 63 3 11 11 Largest 3 | . 2 2 . . 3 3 3 3 . 2 2 2 . 3 2 . 3 3 3 3 1 3 3 1 1 2 Hottest 293 | . 70 70 . . 153 147 122 225 . 110 110 94 . 212 151 . 180 220 293 248 113 240 243 113 113 240 Shots Fired 2258 | . 60 50 . . 256 192 206 374 . 36 20 11 . 61 239 . 79 287 163 9 13 90 78 3 11 20 Gun 1374 | . 60 50 . . 242 183 204 205 . 34 12 4 . 18 123 . 57 175 . 2 . 1 . . . 4 Cannon 764 | . . . . . 12 1 . 168 . . . . . 24 86 . 19 101 159 7 13 85 61 1 11 16 Launcher 91 | . . . . . 2 8 2 1 . . 8 7 . 19 28 . 3 5 4 . . 4 . . . . Special 29 | . . . . . . . . . . 2 . . . . 2 . . 6 . . . . 17 2 . . Kinetic 885 | . 30 25 . . 133 107 140 210 . . . . . 22 62 . 4 12 52 . . 61 24 . . 3 Thermal 617 | . 30 25 . . 121 77 64 41 . . . . . 2 26 . 15 85 45 . 13 11 37 1 11 13 Explosive 17 | . . . . . 2 8 2 1 . . . . . . . . . . 4 . . . . . . . Electromagnetic 710 | . . . . . . . . 122 . 34 20 11 . 37 149 . 60 184 62 9 . 18 . . . 4 Robot Hit Streak 27 | . 10 17 . . 19 27 16 19 . 6 5 9 . 7 11 . 14 15 10 8 . 13 7 4 . 14 Robot Miss Streak 7 | . 3 2 . . 4 3 5 5 . 3 2 1 . 3 7 . 5 5 4 1 . 3 4 . . 1 Penetration Max 2 | . . . . . . . . 1 . . . . . . 1 . . 1 2 . . . . . . . Secondary Targets 8 | . . . . . 1 1 4 2 . . . . . . . . . . . . . . . . . . Max Gunslinging Chain 1 | . . . . . 1 1 1 1 . . . . . . . . . . . . . . . . . . Shots Hit Robots 1357 | . 39 38 . . 171 154 131 240 . 22 12 5 . 26 120 . 45 151 80 8 . 60 29 2 . 24 Core Hits 620 | . 15 12 . . 70 70 60 92 . 10 10 11 . 27 53 . 20 77 39 2 . 34 5 . . 13 Critical Kills 44 | . . . . . 1 2 . 18 . . . . . 4 8 . . 5 5 . . . . . . 1 Critical Parts Destroyed 45 | . . . . . . . . 18 . . . . . 5 10 . . 3 9 . . . . . . . Critical Strikes 120 | . 2 1 . . 6 9 3 41 . . . . . 9 18 . 1 8 15 . . 2 2 . . 3 Burn 17 | . 2 1 . . 5 5 3 1 . . . . . . . . . . . . . . . . . . Meltdown 1 | . . . . . . . . . . . . . . . . . . . . . . . . . . 1 Destroy 92 | . . . . . 1 2 . 40 . . . . . 9 18 . . 8 14 . . . . . . . Blast 4 | . . . . . . . . . . . . . . . . . . . 1 . . 1 1 . . 1 Corrupt 1 | . . . . . . . . . . . . . . . . . 1 . . . . . . . . . Sever 2 | . . . . . . 2 . . . . . . . . . . . . . . . . . . . . Impale 3 | . . . . . . . . . . . . . . . . . . . . . . 1 1 . . 1 Melee Attacks 168 | . . . . . . 25 3 71 . 4 . . . . 17 . 22 . . 1 . 2 1 4 5 13 Impact . | . . . . . . . . . . . . . . . . . . . . . . . . . . . Slashing 135 | . . . . . . 25 . 67 . 4 . . . . 17 . 22 . . . . . . . . . Piercing 26 | . . . . . . . . . . . . . . . . . . . . 1 . 2 1 4 5 13 Sneak Attacks 24 | . . . . . . . 3 6 . . . . . . 4 . 8 . . . . 2 1 . . . Combat Hostiles 1 | . . . . . . . . 1 . . . . . . . . . . . . . . . . . . Follow-up Attacks . | . . . . . . . . . . . . . . . . . . . . . . . . . . . Damage Inflicted 35231 | . 476 465 . . 3094 3947 2839 4431 . 268 580 343 . 950 3154 . 1996 4094 3708 264 . 2872 685 . . 1065 Guns 15369 | . 476 465 . . 2720 2360 2180 2176 . 218 141 55 . 248 1140 . 662 2388 . 20 . 7 . . . 113 Cannons 9565 | . . . . . . 18 . 1479 . . . . . 164 652 . . 685 2957 244 . 2191 595 . . 580 Explosions 7623 | . . . . . 374 1189 659 221 . 50 439 288 . 538 920 . 616 1021 742 . . 513 . . . 53 Melee 2618 | . . . . . . 380 . 515 . . . . . . 442 . 711 . . . . 161 90 . . 319 Ramming 56 | . . . . . . . . 40 . . . . . . . . 7 . 9 . . . . . . . Kinetic 11043 | . 240 269 . . 1362 1300 1317 1994 . . . . . 164 562 . . 201 1084 . . 1903 460 . . 187 Thermal 7538 | . 236 196 . . 1358 1078 1144 597 . 50 13 49 . . 517 . . 1205 476 . . 38 135 . . 446 Explosive 3151 | . . . . . 374 1189 378 156 . . . . . . 82 . 502 . 470 . . . . . . . Electromagnetic 10825 | . . . . . . . . 1129 . 218 567 294 . 786 1551 . 776 2688 1669 264 . 770 . . . 113 Impact . | . . . . . . . . . . . . . . . . . . . . . . . . . . . Slashing 2048 | . . . . . . 380 . 515 . . . . . . 442 . 711 . . . . . . . . . Piercing 570 | . . . . . . . . . . . . . . . . . . . . . . 161 90 . . 319 Highest Corruption 33 | . . . . . . . . 3 . . . . . 18 3 8 7 1 5 . . 22 33 . 12 14 Average Corruption 5 | . . . . . . . . 1 . . . . . 9 1 7 5 1 2 . . 11 22 . 12 10 Corruption Purged 30 | . . . . . . . . 3 . . . . . . 9 1 5 1 11 . . . . . . . Corruption Blocked 6 | . . . . . . . . . . . . . . . . . . . . 1 . 5 . . . . Effects 165 | . . . . . . . . 34 . . . . . 24 2 1 35 . 17 . . 12 31 . 3 6 Message Errors 39 | . . . . . . . . 8 . . . . . 7 1 . 13 . 3 . . 2 4 . . 1 Matter Fused 32 | . . . . . . . . 7 . . . . . 4 . . 11 . 5 . . . 4 . . 1 Heat Flow Errors 19 | . . . . . . . . 4 . . . . . 5 . . 2 . 2 . . 1 4 . 1 . Energy Discharges 22 | . . . . . . . . 7 . . . . . 3 . . 4 . 2 . . . 3 . 2 1 Parts Rejected 3 | . . . . . . . . 1 . . . . . . . . . . 1 . . 1 . . . . Data Loss (minor) 20 | . . . . . . . . . . . . . . 1 . 1 3 . 1 . . 4 9 . . 1 Data Loss (major) 10 | . . . . . . . . 4 . . . . . 1 . . 1 . 2 . . . 1 . . 1 Misfires 8 | . . . . . . . . 1 . . . . . 2 1 . . . 1 . . 1 2 . . . Alerts 6 | . . . . . . . . 1 . . . . . 1 . . . . . . . 2 2 . . . Weapon Failures 6 | . . . . . . . . 1 . . . . . . . . 1 . . . . 1 2 . . 1 Overload Shots 1 | . . . . . . . . 1 . . . . . . . . . . . . . . . . . . Overflow Damage 1131 | . . . . . 2 6 148 18 . . 7 . . 2 97 . 74 135 189 . . 152 188 . . 113 Projectiles 471 | . . . . . . . . . . . . . . . . . . 12 155 . . 150 98 . . 56 Explosions 412 | . . . . . 2 . 148 18 . . 7 . . 2 73 . 3 123 34 . . 2 . . . . Melee 248 | . . . . . . 6 . . . . . . . . 24 . 71 . . . . . 90 . . 57 Knockbacks 37 | . . . . . . . . 10 . . . . . . 5 . . 2 6 . . 12 2 . . . Impact 1 | . . . . . . . . 1 . . . . . . . . . . . . . . . . . . Kinetic 35 | . . . . . . . . 9 . . . . . . 5 . . 2 6 . . 11 2 . . . Secondary 1 | . . . . . . . . . . . . . . . . . . . . . . 1 . . . . Self-Inflicted Damage 571 | . . . . . . . 188 20 . . 11 . . 36 74 . 3 235 4 . . . . . . . Shots 13 | . . . . . . . 2 . . . 1 . . 3 3 . . 4 . . . . . . . . Rammed 3 | . . . . . . . . 1 . . . . . . . . 1 . 1 . . . . . . . Targets Rammed 3 | . . . . . . . . 1 . . . . . . . . 1 . 1 . . . . . . . Kicked . | . . . . . . . . . . . . . . . . . . . . . . . . . . . Crushed . | . . . . . . . . . . . . . . . . . . . . . . . . . . . Highest Temperature 565 | . 192 192 . . 378 476 76 481 12 321 76 21 . 285 234 . 301 550 332 212 260 565 302 54 378 258 Average Temperature 83 | . 65 65 . . 72 105 23 92 3 38 24 9 . 92 52 . 100 94 82 105 105 230 98 30 150 82 Received Heat Transfer 2619 | . 63 153 . . 396 343 309 314 . 9 108 18 . 120 195 . 42 54 63 84 . 222 18 . . 108 Effects 69 | . . . . . 1 3 . 22 . 2 . . . . . . 2 16 2 . 1 18 1 . 1 . Shutdowns 23 | . . . . . . 2 . 8 . . . . . . . . . 5 . . . 7 . . 1 . Energy Bleed 15 | . . . . . 1 . . 7 . 2 . . . . . . 1 . 1 . 1 1 1 . . . Interference 11 | . . . . . . . . 4 . . . . . . . . 1 6 . . . . . . . . Matter Decay 7 | . . . . . . . . 1 . . . . . . . . . 2 1 . . 3 . . . . Short Circuit 4 | . . . . . . 1 . . . . . . . . . . . 1 . . . 2 . . . . Damage (minor) 2 | . . . . . . . . . . . . . . . . . . 1 . . . 1 . . . . Damage (major) 6 | . . . . . . . . 2 . . . . . . . . . . . . . 4 . . . . Damage (core) 1 | . . . . . . . . . . . . . . . . . . 1 . . . . . . . . Siege Activations . | . . . . . . . . . . . . . . . . . . . . . . . . . . . Robots Corrupted 33 | . . . . . . . . . . . 2 . . 2 7 . 4 6 7 2 . 3 . . . . Combat Hostiles 27 | . . . . . . . . . . . 1 . . 2 6 . 4 3 6 2 . 3 . . . . Parts Fried 90 | . . . . . 4 . . 5 . . 2 1 . 9 16 . 4 21 21 3 . 2 . . . 2 Impact Corruptions . | . . . . . . . . . . . . . . . . . . . . . . . . . . . Robots Melted 2 | . . . . . . 1 . . . . . . . . . . . . . . . . . . . 1 Combat Hostiles 1 | . . . . . . 1 . . . . . . . . . . . . . . . . . . . . Parts Melted 24 | . 1 4 . . 5 7 2 4 . . . . . . . . . 1 . . . . . . . . Heat Transferred 13026 | . 851 595 . . 3515 2701 2299 1253 . 50 50 50 . . 300 . . 700 150 . . 37 92 . . 383 Parts Sabotaged . | . . . . . . . . . . . . . . . . . . . . . . . . . . . Parts Stolen . | . . . . . . . . . . . . . . . . . . . . . . . . . . . Parts Stripped . | . . . . . . . . . . . . . . . . . . . . . . . . . . . Power Chain Reactions 18 | . . . . . . . . 1 . 1 1 1 . 1 3 . . 9 . . . . . . . 1 Missiles Intercepted . | . . . . . . . . . . . . . . . . . . . . . . . . . . . Alert | -11 -10 -10 -10 -9 -8 -8 -8 -7 -7 -7 -7 -7 -7 -6 -6 -6 -6 -5 -4 -3 -3 -3 -3 -2 -2 -1 ------- Run | Jun Mat Min Exi Min Mat Gar Mat Fac Was Fac Low Low Dat Pro Fac Was Fac Fac Fac Res Gar Res Gar Res Gar Acc Peak Influence 1430 | . 260 282 . . 909 1430 811 565 179 629 . . . . 658 226 619 531 709 345 256 210 223 222 257 163 Initial 696 | . . 101 . . . 566 696 326 179 125 . . . . 165 211 158 12 135 255 243 144 78 108 166 136 Average 317 | . 168 166 . . 514 984 570 334 179 304 . . . . 245 220 268 182 387 279 249 92 202 157 217 79 Maximum Alert Level 4 | . 1 1 . . 3 4 3 2 . 2 . . . . 2 1 2 2 3 1 1 1 1 1 1 . Low Security (%) 41 | 100 60 61 . 100 19 . . 24 100 53 . . . . 60 . 28 62 9 . . 99 20 82 32 100 Level 1 28 | . 39 38 . . 24 . 19 35 . 6 . . . . 19 100 53 24 43 100 100 . 79 17 67 . Level 2 23 | . . . . . 13 21 61 40 . 40 . . . . 19 . 18 12 44 . . . . . . . Level 3 5 | . . . . . 42 42 18 . . . . . . . . . . . 2 . . . . . . . Level 4 1 | . . . . . . 35 . . . . . . . . . . . . . . . . . . . . Level 5 . | . . . . . . . . . . . . . . . . . . . . . . . . . . . High Security . | . . . . . . . . . . . . . . . . . . . . . . . . . . . Max Security . | . . . . . . . . . . . . . . . . . . . . . . . . . . . Squads Dispatched 94 | . . . . . 5 . 7 15 . 6 . . . . 17 . 8 15 11 1 . 4 . 3 . 2 Investigation 33 | . . . . . . . . 5 . 2 . . . . 8 . 3 10 4 1 . . . . . . Extermination 21 | . . . . . . . . 6 . . . . . . 5 . 1 3 4 . . 1 . . . 1 Reinforcement 27 | . . . . . 2 . 2 4 . 1 . . . . 4 . 3 2 2 . . 3 . 3 . 1 Assault 7 | . . . . . 1 . 2 . . 2 . . . . . . 1 . 1 . . . . . . . Garrison 6 | . . . . . 2 . 3 . . 1 . . . . . . . . . . . . . . . . Intercept . | . . . . . . . . . . . . . . . . . . . . . . . . . . . Searches Triggered . | . . . . . . . . . . . . . . . . . . . . . . . . . . . Data Miner Redirects 18 | . . . . . . . . . . . . . . . 4 . 4 6 3 1 . . . . . . Construction Impeded 5 | . . . . . . . . 1 . 1 . . . . . . 1 . . . . 2 . . . . Haulers Reinforced 4 | . . . . . . . . 2 . . . . . . . . 1 . . . . . . . . 1 Active Scanning Responses . | . . . . . . . . . . . . . . . . . . . . . . . . . . . Cargo Convoy Interrupts 1 | . . . . . . . . . . . . . . . 1 . . . . . . . . . . . Alert ID Control Effect 4 | . . . . . . . . . . . . . . . . . . . . . . . 4 . . . Stealth | -11 -10 -10 -10 -9 -8 -8 -8 -7 -7 -7 -7 -7 -7 -6 -6 -6 -6 -5 -4 -3 -3 -3 -3 -2 -2 -1 --------- Run | Jun Mat Min Exi Min Mat Gar Mat Fac Was Fac Low Low Dat Pro Fac Was Fac Fac Fac Res Gar Res Gar Res Gar Acc Distress Signals 18 | . . . . . 1 . 4 4 . . . . . . 4 . 3 . 1 . . . . 1 . . Communications Jammed 18 | . . . . . . . . . . . . . . . . . . . . . . . . . . 18 Distress Signals 18 | . . . . . . . . . . . . . . . . . . . . . . . . . . 18 Times Spotted 469 | . 9 9 . . 50 31 35 62 . 20 7 7 . 18 51 6 21 42 50 6 . 17 9 10 . 9 Peak Tracking Total 8 | . 5 3 . . 5 6 5 5 . 4 5 3 . 5 4 6 5 5 4 5 . 5 4 8 . 6 Tactical Retreats 58 | . 1 . . . 8 3 . 4 . . . . . 2 14 . 7 6 10 1 . 1 . . . 1 Traps | -11 -10 -10 -10 -9 -8 -8 -8 -7 -7 -7 -7 -7 -7 -6 -6 -6 -6 -5 -4 -3 -3 -3 -3 -2 -2 -1 ------- Run | Jun Mat Min Exi Min Mat Gar Mat Fac Was Fac Low Low Dat Pro Fac Was Fac Fac Fac Res Gar Res Gar Res Gar Acc Traps Triggered 44 | . 4 . . . . 5 . 5 . 1 . . . . 6 . 2 5 8 . 2 1 1 . 3 1 Indirectly 4 | . . . . . . . . . . . . . . . 1 . . 2 . . . 1 . . . . Trap Hack Attempts 1 | . . . . . . . 1 . . . . . . . . . . . . . . . . . . . Triggered . | . . . . . . . . . . . . . . . . . . . . . . . . . . . Disarmed . | . . . . . . . . . . . . . . . . . . . . . . . . . . . Reprogrammed 4 | . . . . . . . . . . . . . . . . . . 4 . . . . . . . . Reused 12 | . . . . . 9 . . . . . . . . . . . . 3 . . . . . . . . Traps Reconfigurated 18 | . . . . . 18 . . . . . . . . . . . . . . . . . . . . . Traps Extracted . | . . . . . . . . . . . . . . . . . . . . . . . . . . . Installed . | . . . . . . . . . . . . . . . . . . . . . . . . . . . Triggered 14 | . . . . . 9 . . . . . . . . . 1 . 1 3 . . . . . . . . Machines | -11 -10 -10 -10 -9 -8 -8 -8 -7 -7 -7 -7 -7 -7 -6 -6 -6 -6 -5 -4 -3 -3 -3 -3 -2 -2 -1 ---------- Run | Jun Mat Min Exi Min Mat Gar Mat Fac Was Fac Low Low Dat Pro Fac Was Fac Fac Fac Res Gar Res Gar Res Gar Acc Machines Disabled 51 | . . . . . 1 2 5 3 . 4 . . . . 15 . 5 5 6 1 . 1 . 2 1 . Max in Single Turn 5 | . . . . . 1 1 3 1 . . . . . . 4 . 2 4 5 1 . 1 . 1 1 . Garrison Access 14 | . . . . . . . 1 3 . 1 . . . . . . 2 4 2 . . . . . . 1 Garrison Relay 2 | . . . . . . 1 . . . . . . . . . . . . . . . . . . 1 . Machines Repaired . | . . . . . . . . . . . . . . . . . . . . . . . . . . . Machines Sabotaged . | . . . . . . . . . . . . . . . . . . . . . . . . . . . Overloaded Fab Kills . | . . . . . . . . . . . . . . . . . . . . . . . . . . . Hacking | -11 -10 -10 -10 -9 -8 -8 -8 -7 -7 -7 -7 -7 -7 -6 -6 -6 -6 -5 -4 -3 -3 -3 -3 -2 -2 -1 --------- Run | Jun Mat Min Exi Min Mat Gar Mat Fac Was Fac Low Low Dat Pro Fac Was Fac Fac Fac Res Gar Res Gar Res Gar Acc Machines Accessed 157 | . 4 . 2 . 8 2 2 32 . 8 . . 4 . 20 . 13 31 15 3 . 4 . 3 1 5 Terminals 81 | . 4 . . . 6 2 1 17 . 4 . . . . 9 . 7 12 9 . . 3 . 2 1 4 Fabricators 13 | . . . . . . . . 3 . . . . . . 3 . 1 5 1 . . . . . . . Repair Stations 13 | . . . . . . . . 3 . 2 . . . . 2 . . 4 1 1 . . . . . . Recycling Units 14 | . . . . . . . . 3 . 1 . . . . 3 . 3 3 1 . . . . . . . Scanalyzers 12 | . . . . . 1 . . 3 . . . . . . 3 . . 3 1 1 . . . . . . Garrison Access 18 | . . . . . 1 . 1 3 . 1 . . . . . . 2 4 2 1 . 1 . 1 . 1 Total Hacks 511 | . 10 . 2 . 22 3 6 117 . 21 . . 29 . 77 . 45 108 40 7 . 12 . 5 2 5 Successful 292 | . 3 . 2 . 8 1 4 66 . 17 . . 29 . 44 . 23 62 20 3 . 5 . 1 1 3 Failed 219 | . 7 . . . 14 2 2 51 . 4 . . . . 33 . 22 46 20 4 . 7 . 4 1 2 Catastrophic 49 | . 1 . . . 5 2 2 7 . . . . . . 7 . 2 11 5 1 . 2 . 2 . 2 Database Lockouts . | . . . . . . . . . . . . . . . . . . . . . . . . . . . Manual 216 | . 9 . 1 . 16 . 2 53 . 10 . . . . 27 . 26 37 21 . . 9 . 2 . 3 Terminals 263 | . 10 . . . 18 3 3 68 . 10 . . . . 36 . 28 45 21 . . 11 . 4 2 4 Fabricators 45 | . . . . . . . . 10 . . . . . . 11 . 2 17 5 . . . . . . . Repair Stations 43 | . . . . . . . . 13 . 4 . . . . 7 . . 11 4 4 . . . . . . Recycling Units 50 | . . . . . . . . 9 . 5 . . . . 10 . 12 9 5 . . . . . . . Scanalyzers 52 | . . . . . 2 . . 13 . . . . . . 13 . . 19 3 2 . . . . . . Garrison Access 27 | . . . . . 2 . 3 4 . 2 . . . . . . 3 7 2 1 . 1 . 1 . 1 Terminal Hacks 106 | . 2 . 2 . 4 1 3 19 . 4 . . 29 . 14 . 7 13 4 . . 2 . . 1 1 Record 12 | . . . 1 . . . . . . . . . 11 . . . . . . . . . . . . . Part Schematic 29 | . . . . . 2 . . 7 . . . . 9 . 4 . 1 6 . . . . . . . . Robot Schematic 9 | . 1 . . . 1 . . . . 1 . . 6 . . . . . . . . . . . . . Prototype ID Bank 4 | . . . . . . . . . . . . . 3 . 1 . . . . . . . . . . . Open Door 1 | . . . . . . . . . . . . . . . . . . . . . . . . . . 1 Level Access Points 3 | . . . . . . . . 1 . . . . . . . . . 1 1 . . . . . . . Branch Access Points 4 | . 1 . . . 1 . . 1 . 1 . . . . . . . . . . . . . . . . Emergency Access Points 1 | . . . . . . . . . . . . . . . . . . . . . . . . . 1 . Machine Index 1 | . . . . . . . . . . . . . . . . . . 1 . . . . . . . . Terminal Index 6 | . . . . . . . . 1 . 1 . . . . 1 . 1 . 1 . . 1 . . . . Fabricator Index 1 | . . . . . . . . 1 . . . . . . . . . . . . . . . . . . Unreport Threat 18 | . . . . . . . 3 5 . 1 . . . . 1 . 3 2 2 . . 1 . . . . Locate Traps 1 | . . . . . . . . . . . . . . . 1 . . . . . . . . . . . Reprogram Traps 1 | . . . . . . . . . . . . . . . . . . 1 . . . . . . . . Dispatch Records 1 | . . . . . . . . . . . . . . . 1 . . . . . . . . . . . Recall Investigation 2 | . . . . . . . . . . . . . . . . . 1 1 . . . . . . . . Recall Extermination 2 | . . . . . . . . 1 . . . . . . 1 . . . . . . . . . . . Recall Reinforcements 4 | . . . . . . . . 1 . . . . . . 2 . . 1 . . . . . . . . Hauler Manifests 3 | . . . . . . . . 1 . . . . . . 1 . 1 . . . . . . . . . Zone Layout 1 | . . . . . . . . . . . . . . . 1 . . . . . . . . . . . Garrison Registry 1 | . . . . . . 1 . . . . . . . . . . . . . . . . . . . . EX-Prototype ID Bank 1 | . . . 1 . . . . . . . . . . . . . . . . . . . . . . . Fabricator Hacks 25 | . . . . . . . . 6 . . . . . . 6 . 2 9 2 . . . . . . . Load Schematic 11 | . . . . . . . . 3 . . . . . . 2 . 1 4 1 . . . . . . . Build 14 | . . . . . . . . 3 . . . . . . 4 . 1 5 1 . . . . . . . Repair Station Hacks 24 | . . . . . . . . 9 . 3 . . . . 4 . . 6 1 1 . . . . . . Scan Component 15 | . . . . . . . . 5 . 2 . . . . 2 . . 4 1 1 . . . . . . Repair 8 | . . . . . . . . 4 . 1 . . . . 2 . . 1 . . . . . . . . Refit 1 | . . . . . . . . . . . . . . . . . . 1 . . . . . . . . Recycling Unit Hacks 6 | . . . . . . . . 1 . 1 . . . . 1 . 1 2 . . . . . . . . Retrieve Components 6 | . . . . . . . . 1 . 1 . . . . 1 . 1 2 . . . . . . . . Scanalyzer 35 | . . . . . 1 . . 8 . . . . . . 7 . . 16 2 1 . . . . . . Insert Component 17 | . . . . . 1 . . 4 . . . . . . 3 . . 7 1 1 . . . . . . Analyze 18 | . . . . . . . . 4 . . . . . . 4 . . 9 1 . . . . . . . Garrison Access Hacks 21 | . . . . . 1 . 1 4 . 2 . . . . . . 3 4 2 1 . 1 . 1 . 1 Unlock Access 6 | . . . . . 1 . 1 . . 1 . . . . . . . . . 1 . 1 . 1 . . Seal Access 12 | . . . . . . . . 3 . . . . . . . . 2 4 2 . . . . . . 1 Coupler Status 3 | . . . . . . . . 1 . 1 . . . . . . 1 . . . . . . . . . Unauthorized Hacks 75 | . 1 . . . 2 . . 19 . 7 . . . . 12 . 10 12 9 . . 2 . . . 1 Terminals 34 | . 1 . . . 2 . . 9 . 2 . . . . 4 . 4 3 6 . . 2 . . . 1 Assimilate 10 | . . . . . . . . 3 . 1 . . . . 1 . 2 1 2 . . . . . . . Botnet 21 | . 1 . . . 2 . . 4 . 1 . . . . 2 . 2 2 4 . . 2 . . . 1 Disrupt 1 | . . . . . . . . 1 . . . . . . . . . . . . . . . . . . Operators 2 | . . . . . . . . 1 . . . . . . 1 . . . . . . . . . . . Fabricators 8 | . . . . . . . . 3 . . . . . . 3 . . 2 . . . . . . . . Report 3 | . . . . . . . . 1 . . . . . . 1 . . 1 . . . . . . . . Prioritize 1 | . . . . . . . . . . . . . . . 1 . . . . . . . . . . . Liberate 1 | . . . . . . . . . . . . . . . 1 . . . . . . . . . . . Fabnet 1 | . . . . . . . . 1 . . . . . . . . . . . . . . . . . . Haulers 2 | . . . . . . . . 1 . . . . . . . . . 1 . . . . . . . . Repair Stations 3 | . . . . . . . . 1 . 1 . . . . 1 . . . . . . . . . . . Mechanics 3 | . . . . . . . . 1 . 1 . . . . 1 . . . . . . . . . . . Recycling Units 27 | . . . . . . . . 6 . 4 . . . . 3 . 6 5 3 . . . . . . . Monitor 3 | . . . . . . . . 1 . 1 . . . . . . 1 . . . . . . . . . Reject 9 | . . . . . . . . 2 . 1 . . . . 1 . 2 2 1 . . . . . . . Recyclers 5 | . . . . . . . . 1 . 1 . . . . . . 1 1 1 . . . . . . . Mask 10 | . . . . . . . . 2 . 1 . . . . 2 . 2 2 1 . . . . . . . Scanalyzers 1 | . . . . . . . . . . . . . . . 1 . . . . . . . . . . . Extract 1 | . . . . . . . . . . . . . . . 1 . . . . . . . . . . . Garrison Access 2 | . . . . . . . . . . . . . . . . . . 2 . . . . . . . . Broadcast 1 | . . . . . . . . . . . . . . . . . . 1 . . . . . . . . Redirect 1 | . . . . . . . . . . . . . . . . . . 1 . . . . . . . . Data Cores Recovered 1 | . . . . . . . . . . 1 . . . . . . . . . . . . . . . . Used 1 | . . . . . . . . . . 1 . . . . . . . . . . . . . . . . Hacking Detections 121 | . 4 . . . 7 2 2 27 . 5 . . . . 17 . 11 24 11 2 . 4 . 2 1 2 Full Trace Events 23 | . . . . . . 1 . 5 . 1 . . . . 5 . 1 7 2 1 . . . . . . Feedback Events 4 | . . . . . . . . . . 1 . . . . 1 . . 1 . 1 . . . . . . Corruption 3 | . . . . . . . . . . . . . . . 1 . . 1 . 1 . . . . . . Hackware Fried 1 | . . . . . . . . . . 1 . . . . . . . . . . . . . . . . Feedback Blocked . | . . . . . . . . . . . . . . . . . . . . . . . . . . . Robot Schematics Acquired 9 | . 1 . . . 1 . . . . 1 . . 6 . . . . . . . . . . . . . Robots Built 2 | . . . . . . . . . . . . . . . 1 . . 1 . . . . . . . . Authchips . | . . . . . . . . . . . . . . . . . . . . . . . . . . . Time 156 | . . . . . . . . . . . . . . . 40 . . 116 . . . . . . . . Total Robot Build Rating 4 | . . . . . . . . . . . . . . . 1 . . 3 . . . . . . . . Part Schematics Acquired 63 | . . . . . 2 . . 11 . . . . 9 . 27 . 1 12 1 . . . . . . . Parts Built 17 | . . . . . . . . 5 . . . . . . 5 . 1 5 1 . . . . . . . Authchips . | . . . . . . . . . . . . . . . . . . . . . . . . . . . Time 1049 | . . . . . . . . 201 . . . . . . 222 . 84 489 53 . . . . . . . Total Part Build Rating 109 | . . . . . . . . 28 . . . . . . 33 . 4 38 6 . . . . . . . Parts Repaired 8 | . . . . . . . . 4 . 1 . . . . 2 . . 1 . . . . . . . . Time 381 | . . . . . . . . 154 . 78 . . . . 106 . . 43 . . . . . . . . Parts Recycled . | . . . . . . . . . . . . . . . . . . . . . . . . . . . Recycled Matter . | . . . . . . . . . . . . . . . . . . . . . . . . . . . Retrieved Matter . | . . . . . . . . . . . . . . . . . . . . . . . . . . . Retrieved Components 38 | . . . . . . . . 1 . 6 . . . . 9 . 10 12 . . . . . . . . Parts Scanalyzed 17 | . . . . . 1 . . 4 . . . . . . 3 . . 7 1 1 . . . . . . Part Schematics Acquired 14 | . . . . . . . . 4 . . . . . . 3 . . 6 1 . . . . . . . Parts Damaged 3 | . . . . . . . . . . . . . . . . . . 3 . . . . . . . . Bothacking | -11 -10 -10 -10 -9 -8 -8 -8 -7 -7 -7 -7 -7 -7 -6 -6 -6 -6 -5 -4 -3 -3 -3 -3 -2 -2 -1 ------------ Run | Jun Mat Min Exi Min Mat Gar Mat Fac Was Fac Low Low Dat Pro Fac Was Fac Fac Fac Res Gar Res Gar Res Gar Acc Used RIF Installer 4 | . . . . . . 1 . . . . . . . . . . . . . . 1 . 1 . 1 . Patrol Navigation 1 | . . . . . . . . . . . . . . . . . . . . . . . 1 . . . Alert ID Control 1 | . . . . . . . . . . . . . . . . . . . . . 1 . . . . . Program Shield 1 | . . . . . . . . . . . . . . . . . . . . . . . . . 1 . Robots Hacked 18 | . . . . . . . 2 2 . . . . . . 3 . . 1 . . . . 9 1 . . Non-combat 8 | . . . . . . . 2 2 . . . . . . 2 . . 1 . . . . . 1 . . Combat 10 | . . . . . . . . . . . . . . . 1 . . . . . . . 9 . . . Robot Hacks Applied 21 | . . . . . . . 3 4 . . . . . . 2 . . 2 . . . . 9 1 . . no_distress 2 | . . . . . . . . 2 . . . . . . . . . . . . . . . . . . find_chute 1 | . . . . . . . . . . . . . . . 1 . . . . . . . . . . . ignore_repairs 1 | . . . . . . . . . . . . . . . 1 . . . . . . . . . . . find_fabricator 1 | . . . . . . . . 1 . . . . . . . . . . . . . . . . . . find_dsf 1 | . . . . . . . . 1 . . . . . . . . . . . . . . . . . . purge_threat 3 | . . . . . . . 1 . . . . . . . . . . 2 . . . . . . . . reboot_system 1 | . . . . . . . . . . . . . . . . . . . . . . . 1 . . . overwrite_iff 1 | . . . . . . . . . . . . . . . . . . . . . . . 1 . . . streamctrl_high 1 | . . . . . . . . . . . . . . . . . . . . . . . 1 . . . formatsys_low 3 | . . . . . . . 2 . . . . . . . . . . . . . . . . 1 . . formatsys_high 6 | . . . . . . . . . . . . . . . . . . . . . . . 6 . . . Relay Couplers Released 17 | . . . . . . 4 1 . . 3 . . . . 1 . 2 . 3 . . . . . 3 . Machine Destruction 17 | . . . . . . 4 1 . . 3 . . . . 1 . 2 . 3 . . . . . 3 . Attached 7 | . . . . . . . 1 . . . . . . . . . . 1 . . . . 5 . . . Fabnet Peak Effective % 3 | . . . . . . . . . . . . . . 3 3 3 3 1 . . . . . . . . Autooverrided 1 | . . . . . . . . . . . . . . . 1 . . . . . . . . . . . Robots Rewired 3 | . . . . . . . . . . 2 . . . . . . . 1 . . . . . . . . Allies Hacked . | . . . . . . . . . . . . . . . . . . . . . . . . . . . Hacks Repelled . | . . . . . . . . . . . . . . . . . . . . . . . . . . . Allies | -11 -10 -10 -10 -9 -8 -8 -8 -7 -7 -7 -7 -7 -7 -6 -6 -6 -6 -5 -4 -3 -3 -3 -3 -2 -2 -1 -------- Run | Jun Mat Min Exi Min Mat Gar Mat Fac Was Fac Low Low Dat Pro Fac Was Fac Fac Fac Res Gar Res Gar Res Gar Acc Total Allies 56 | . . 3 . 1 . . 2 2 20 2 . . . 1 11 . 2 3 . . . . 8 1 . . Largest Group 21 | . . 3 2 3 3 . 2 2 20 21 6 2 2 2 3 . 2 2 . . . . 7 1 . . Highest-Rated Group 571 | . . 40 24 55 55 . 22 36 557 571 167 56 56 96 87 . 52 52 . . . . 369 45 . . Highest-Rated Ally 96 | . . 16 16 31 31 . 15 26 35 35 35 31 31 96 37 . 26 26 . . . . 64 45 . . Total Orders 93 | . . . . . . . 11 19 . 2 1 . . . 27 . . 26 . . . . 7 . . . STAY 47 | . . . . . . . 6 14 . . . . . . 10 . . 12 . . . . 5 . . . ROAM 1 | . . . . . . . . . . . . . . . . . . 1 . . . . . . . . FOLLOW 32 | . . . . . . . 4 5 . . . . . . 13 . . 8 . . . . 2 . . . AID 7 | . . . . . . . 1 . . 2 1 . . . . . . 3 . . . . . . . . DROP 1 | . . . . . . . . . . . . . . . . . . 1 . . . . . . . . PICKUP 5 | . . . . . . . . . . . . . . . 4 . . 1 . . . . . . . . Ally Attacks 281 | . . 23 . . 17 . . . . 126 39 4 . 24 24 . . . . . . . 24 . . . Total Damage 7644 | . . 213 . . 142 . . . . 3671 761 65 . 661 919 . . . . . . . 1212 . . . Kills 62 | . . 5 . . 5 . . . . 33 4 1 . 5 5 . . . . . . . 4 . . . Allies Corrupted . | . . . . . . . . . . . . . . . . . . . . . . . . . . . Allies Melted . | . . . . . . . . . . . . . . . . . . . . . . . . . . . Intel | -11 -10 -10 -10 -9 -8 -8 -8 -7 -7 -7 -7 -7 -7 -6 -6 -6 -6 -5 -4 -3 -3 -3 -3 -2 -2 -1 ------- Run | Jun Mat Min Exi Min Mat Gar Mat Fac Was Fac Low Low Dat Pro Fac Was Fac Fac Fac Res Gar Res Gar Res Gar Acc Robot Analysis Total . | . . . . . . . . . . . . . . . . . . . . . . . . . . . Derelict Logs Recovered 6 | . . 2 . . . . . . . . 2 1 . 1 . . . . . . . . . . . . Drone Launches . | . . . . . . . . . . . . . . . . . . . . . . . . . . . Drone Recoveries . | . . . . . . . . . . . . . . . . . . . . . . . . . . . Exploration | -11 -10 -10 -10 -9 -8 -8 -8 -7 -7 -7 -7 -7 -7 -6 -6 -6 -6 -5 -4 -3 -3 -3 -3 -2 -2 -1 ------------- Run | Jun Mat Min Exi Min Mat Gar Mat Fac Was Fac Low Low Dat Pro Fac Was Fac Fac Fac Res Gar Res Gar Res Gar Acc Turns Passed 26303 | 64 378 515 329 74 1252 1269 950 4332 238 872 624 345 66 963 4049 38 1231 3716 2196 195 112 702 609 170 203 811 Spaces Moved 24327 | 62 177 388 340 78 633 605 476 4049 306 1193 839 473 85 634 4229 69 1438 4014 2041 222 82 465 412 211 170 636 Core 18 | 2 . . . . . . . . . . . . . . . . . . . . . 12 . . . 4 Treads 88 | . 88 . . . . . . . . . . . . . . . . . . . . . . . . . Legs 76 | . . . . . 61 15 . . . . . . . . . . . . . . . . . . . . Wheels 1652 | 60 89 388 340 78 572 . . . . . . . . . . . . . . . . 121 . . . 4 Hover 22493 | . . . . . . 590 476 4049 306 1193 839 473 85 634 4229 69 1438 4014 2041 222 82 332 412 211 170 628 Flight . | . . . . . . . . . . . . . . . . . . . . . . . . . . . Fastest Speed 41 | 50 80 95 95 95 95 74 74 59 59 59 59 65 65 65 55 55 55 52 41 41 41 41 46 53 53 55 Average Speed 71 | 79 127 104 95 95 108 139 143 68 60 59 64 65 65 123 66 55 55 54 65 66 41 80 76 59 65 100 Slowest Speed 326 | 80 160 110 95 95 270 310 144 144 124 59 132 65 65 198 326 55 97 160 121 94 41 200 105 100 105 300 Overloaded Moves . | . . . . . . . . . . . . . . . . . . . . . . . . . . . Propulsion Burnouts . | . . . . . . . . . . . . . . . . . . . . . . . . . . . Robots Hopped 1 | . . . . . . . . . . . . . . . 1 . . . . . . . . . . . Cave-ins Triggered 1 | . . . . . . . . . . . . . . . . . . . . . . . . . 1 . Exploration Rate (%) 45 | 4 39 67 72 23 62 43 50 73 96 33 80 55 70 68 50 60 41 73 49 5 15 11 29 11 27 14 Regions Visited 26 Branch Regions 7 Pre-discovered Areas 4 | . . 1 1 . . . . . . . 1 . 1 . . . . . . . . . . . . . Known Exits Taken 10 | . 1 . . . 1 . . . . 1 . . . 1 . . 1 1 1 1 . 1 . 1 . . Unknown Exits Taken 8 | 1 . 1 1 1 . . 1 . . . 1 1 1 . . . . . . . . . . . . . Scrap Searched 11 | . . 1 . 1 . . . . . . 2 5 . 2 . . . . . . . . . . . . Spaces Dug 215 | . . . . . 7 . . 46 . 4 . . . . 23 . 18 40 41 1 5 9 15 3 2 1 Terrain Destroyed 582 | . . . . . 19 10 37 54 . 7 4 4 . 2 66 . 31 126 129 1 12 19 40 3 11 7 Melee 64 | . . . . . . . . 45 . 4 . . . . 7 . 4 . . 1 . . . 3 . . Projectile 246 | . . . . . 8 . . 1 . . . . . 2 18 . 15 73 43 . 12 19 40 . 11 4 AOE 272 | . . . . . 11 10 37 8 . 3 4 4 . . 41 . 12 53 86 . . . . . . 3 Terrain Rammed . | . . . . . . . . . . . . . . . . . . . . . . . . . . . Walls Destroyed . | . . . . . . . . . . . . . . . . . . . . . . . . . . . Machines Disabled . | . . . . . . . . . . . . . . . . . . . . . . . . . . . Actions | -11 -10 -10 -10 -9 -8 -8 -8 -7 -7 -7 -7 -7 -7 -6 -6 -6 -6 -5 -4 -3 -3 -3 -3 -2 -2 -1 --------- Run | Jun Mat Min Exi Min Mat Gar Mat Fac Was Fac Low Low Dat Pro Fac Was Fac Fac Fac Res Gar Res Gar Res Gar Acc Total 30801 | 73 269 446 346 77 1006 878 632 5189 359 1316 905 497 95 750 5204 68 1766 5231 2718 260 145 694 635 247 241 754 Wait 3745 | . 39 19 2 . 188 69 58 657 45 79 36 15 11 40 662 . 215 822 454 16 22 92 112 25 15 52 Move 24300 | 61 176 387 339 77 632 603 475 4049 305 1192 838 472 84 633 4227 68 1437 4013 2040 222 81 465 410 211 168 635 Hop 1 | . . . . . . . . . . . . . . . 1 . . . . . . . . . . . Pick Up 195 | 5 6 3 1 . 17 10 2 25 2 4 5 . . 5 32 . 8 23 15 5 . 16 2 . 1 8 Fast Attach 174 | 6 9 2 . . 12 6 . 18 2 . 2 . . 8 11 . 10 10 25 2 . 21 11 1 . 18 Attach 112 | . . . . . 7 3 4 31 1 2 4 . . 3 9 . 4 5 17 2 1 10 4 1 . 4 Detach 41 | . 1 . . . 3 1 . 21 1 . 1 . . . 3 . 2 . 4 . . . 3 1 . . Swap 336 | 1 4 6 1 . 21 22 13 32 . 10 . . . 6 50 . 12 92 41 3 2 7 10 . 1 2 Drop 233 | . 4 4 3 . 26 18 2 28 3 3 3 . . 9 35 . 12 31 15 5 . 17 4 . . 11 Fire 1349 | . 30 25 . . 100 82 72 244 . 22 16 10 . 46 157 . 43 227 106 4 13 64 63 3 11 11 Melee 168 | . . . . . . 25 3 71 . 4 . . . . 17 . 22 . . 1 . 2 1 4 5 13 Ram 3 | . . . . . . . . 1 . . . . . . . . 1 . 1 . . . . . . . Kick . | . . . . . . . . . . . . . . . . . . . . . . . . . . . Crush . | . . . . . . . . . . . . . . . . . . . . . . . . . . . Escape Stasis 138 | . . . . . . 39 . 12 . . . . . . . . . 8 . . 26 . 13 . 40 . Rewire 5 | . . . . . . . 2 . . . . . . . . . . . . . . . 2 1 . . Trap 1 | . . . . . . . 1 . . . . . . . . . . . . . . . . . . . Miscellaneous . | . . . . . . . . . . . . . . . . . . . . . . . . . . . Route ------- -11/Junkyard -10/Materials -10/Mines -10/Exiles -9/Mines -8/Materials (discovered 3 exits: *Fac x2 / Gar) -8/Garrison (discovered 4 exits: *Mat x4) -8/Materials (discovered 2 exits: *Fac x2) -7/Factory (discovered 8 exits: *Fac x4 / *Sto x2 / *Low x2) -7/Waste -7/Factory (discovered 4 exits: Sto / *Low x2 / Gar) -7/Lower Caves -7/Lower Caves (discovered 2 exits: *Fac / *Dat) -7/Data Miner -6/Proximity Caves -6/Factory (discovered 2 exits: *Fac / *Low) -6/Waste -6/Factory -5/Factory (discovered 6 exits: *Fac x4 / [*Upp x2]) -4/Factory (discovered 5 exits: *Res x4 / [*Upp]) -3/Research -3/Garrison -3/Research (discovered 2 exits: [*Tes] / Gar) -3/Garrison -2/Research -2/Garrison -1/Access To Epsilon Eridani History --------- Turn | Location | Event 28 | -11/Junkyard | Discovered new exit (range 15) 65 | -11/Junkyard | Entered Materials 318 | -10/Materials | Build established: Mutant 371 | -10/Materials | Identified exit to Mines 443 | -10/Materials | Entered Mines 551 | -10/Mines | Found a hidden stash of uninstalled traps 559 | -10/Mines | Learned Materials trap positions 584 | -10/Mines | A weapon hastily lodged in a ceiling crevice suddenly fell to the ground 692 | -10/Mines | Assisted by bots powering up and referring to "LRC-V3" 855 | -10/Mines | Found a damaged Exp. Sensor Array with a note attached 857 | -10/Mines | Found Prototype Device 949 | -10/Mines | Deemed a non-threat by the Exiles lab entrance 949 | -10/Mines | Discovered new exit (range 5) 958 | -10/Mines | Entered Exiles 958 | -10/Exiles | Accompanied by 2 allies 980 | -10/Exiles | Met 8R-AWN 998 | -10/Exiles | Met EX-HEX 1025 | -10/Exiles | Met EX-BIN 1036 | -10/Exiles | Aligned with FarCom system 1037 | -10/Exiles | Given EX-Vault access code 1061 | -10/Exiles | Opened EX-Vault 1067 | -10/Exiles | Found Trap Reconfigurator 1087 | -10/Exiles | Warned to stay clear of 0b10 Research branches 1117 | -10/Exiles | Met EX-DEC 1122 | -10/Exiles | Learned location of Zion (-6) 1219 | -10/Exiles | Build established: Scavenger-Mutant 1272 | -10/Exiles | Discovered new exit (range 14) 1287 | -10/Exiles | Left Exiles lab with Trap Reconfigurator 1287 | -10/Exiles | Entered Mines 1287 | -9/Mines | Accompanied by 2 allies 1288 | -9/Mines | Assembled infested the area 1290 | -9/Mines | Received a Mining Laser from a helpful Derelict 1351 | -9/Mines | Discovered new exit (range 7) 1361 | -9/Mines | Entered Materials 1361 | -8/Materials | Accompanied by 3 allies 1361 | -8/Materials | Evolved 4 slots: Power x1, Propulsion x1, Utility x1, Weapon x1 1362 | -8/Materials | Loaded intel: 24 trap records 1363 | -8/Materials | Identified Exp. Sensor Array 1989 | -8/Materials | Build established: Scavenger-Skirmisher 2161 | -8/Materials | First assault squad dispatched 2397 | -8/Materials | Discovered new exit (range 10) 2566 | -8/Materials | Discovered new exit (range 19) 2589 | -8/Materials | Build established: Skirmisher 2601 | -8/Materials | Identified exit to Garrison 2613 | -8/Materials | Entered Garrison 3046 | -8/Garrison | Triggered checkpoint 3104 | -8/Garrison | Triggered checkpoint 3123 | -8/Garrison | Build established: Scavenger-Mutant 3241 | -8/Garrison | Core integrity fell below 50% 3374 | -8/Garrison | Triggered checkpoint 3432 | -8/Garrison | Discovered new exit (range 91) 3432 | -8/Garrison | Discovered new exit (range 18) 3432 | -8/Garrison | Discovered new exit (range 80) 3432 | -8/Garrison | Discovered new exit (range 76) 3469 | -8/Garrison | Build established: Scavenger-Skirmisher 3673 | -8/Garrison | Installed Relay Interface Framework 3820 | -8/Garrison | Garrison Relay disabled 3824 | -8/Garrison | Build established: Scavenger-Mutant 3882 | -8/Garrison | Entered Materials 4248 | -8/Materials | Discovered new exit (range 11) 4292 | -8/Materials | Garrison activated, responded to threat 4433 | -8/Materials | Identified exit to Garrison 4534 | -8/Materials | Lost 3 parts (1p1n1w) 4682 | -8/Materials | First assault squad dispatched 4813 | -8/Materials | Discovered new exit (range 11) 4832 | -8/Materials | Entered Factory 4832 | -7/Factory | Evolved 2 slots: Propulsion x1, Utility x1 5135 | -7/Factory | Discovered new exit (range 15) 5596 | -7/Factory | Lost 3 parts (1p2w) 5687 | -7/Factory | Fabricated Hyp. Gauss Cannon (x2) 6184 | -7/Factory | Discovered new exit (range 15) 6340 | -7/Factory | Repaired Cmb. Airjet 6380 | -7/Factory | Build established: Hacker-Mutant 6979 | -7/Factory | Repaired Cmb. Airjet 7024 | -7/Factory | Repaired Gravmag System 7070 | -7/Factory | Repaired Gravmag System 7179 | -7/Factory | Discovered new exit (range 7) 7597 | -7/Factory | Discovered new exit (range 16) 7727 | -7/Factory | Discovered new exit (range 3) 7872 | -7/Factory | Fabricated Antigrav System (x2) 8262 | -7/Factory | Identified exit to Storage 8262 | -7/Factory | Identified exit to Lower Caves 8262 | -7/Factory | Identified exit to Factory 8616 | -7/Factory | Fabricated Arc Projector (x1) 8836 | -7/Factory | Core integrity fell below 50% 9164 | -7/Factory | Sucked down chute 9164 | -7/Factory | Entered Waste 9165 | -7/Waste | Joined by Warlord forces that had cleared the area 9300 | -7/Waste | Discovered new exit (range 15) 9402 | -7/Waste | Entered Factory 9402 | -7/Factory | Accompanied by 20 allies 9713 | -7/Factory | Repaired Broken Adv. System Restoration Module? 9816 | -7/Factory | Garrison activated, responded to threat 9990 | -7/Factory | Identified exit to Garrison 10044 | -7/Factory | Hacking Suite fried by hacking feedback 10202 | -7/Factory | First assault squad dispatched 10274 | -7/Factory | Entered Lower Caves 10274 | -7/Lower Caves | Accompanied by 6 allies 10288 | -7/Lower Caves | Learned Factory stockpile data 10312 | -7/Lower Caves | Encountered a Warlord checkpoint 10367 | -7/Lower Caves | Spotted B-75 Beast 10418 | -7/Lower Caves | Allies destroyed B-75 Beast 10492 | -7/Lower Caves | Attracted the attention of an 0b10 checkpoint 10790 | -7/Lower Caves | Discovered new exit (range 4) 10898 | -7/Lower Caves | Entered another Lower Caves area 10898 | -7/Lower Caves | Accompanied by 2 allies 10902 | -7/Lower Caves | Discovered exit to Factory (range 15) 10919 | -7/Lower Caves | Learned Factory emergency access door positions 10996 | -7/Lower Caves | Attracted the attention of an 0b10 checkpoint 11202 | -7/Lower Caves | Discovered new exit (range 15) 11243 | -7/Lower Caves | Entered Data Miner 11243 | -7/Data Miner | Accompanied by 2 allies 11243 | -7/Data Miner | Discovered new exit (range 6) 11256 | -7/Data Miner | Met Data Miner 11273 | -7/Data Miner | Learned location of Section 7 (-2) 11273 | -7/Data Miner | Acquired the access code to Warlord's prototype stash 11283 | -7/Data Miner | Received God Mode back door access code from Data Miner 11309 | -7/Data Miner | Entered Proximity Caves 11309 | -6/Proximity Caves | Accompanied by 2 allies 11366 | -6/Proximity Caves | Escorted by Enhanced Grunt 11431 | -6/Proximity Caves | Spotter reported a threat 11560 | -6/Proximity Caves | Attacked by a faux Warlord 11698 | -6/Proximity Caves | Build established: Scavenger-Mutant 11751 | -6/Proximity Caves | Core integrity fell below 20% 11824 | -6/Proximity Caves | Attracted the attention of an 0b10 checkpoint 11994 | -6/Proximity Caves | System corruption reached 10% 12109 | -6/Proximity Caves | Learned 4 Factory zone layouts 12220 | -6/Proximity Caves | Discovered exit to Factory (range 15) 12272 | -6/Proximity Caves | Entered Factory 12272 | -6/Factory | Evolved 2 slots: Propulsion x1, Utility x1 12871 | -6/Factory | Discovered new exit (range 4) 12953 | -6/Factory | Identified exit to Lower Caves 13077 | -6/Factory | Discovered new exit (range 14) 13085 | -6/Factory | Identified exit to Factory 13212 | -6/Factory | Fabricated Imp. Gyrokinetic Inverter (x2) 13508 | -6/Factory | Incoming investigation squad redirected 13529 | -6/Factory | Fabricated Cloaking Device (x1) 13576 | -6/Factory | Cargo convoy interrupted 13687 | -6/Factory | Build established: Hacker-Mutant 14067 | -6/Factory | Incoming assault squad redirected 14258 | -6/Factory | Repaired Hyp. Gauss Cannon? 14317 | -6/Factory | Repaired Cloaking Device 14399 | -6/Factory | Fabricated R-06 Scavenger (x1) 14748 | -6/Factory | Incoming investigation squad redirected 14876 | -6/Factory | Incoming investigation squad redirected 14904 | -6/Factory | Fabricated Imp. Gyrokinetic Inverter (x2) 15405 | -6/Factory | Lost 3 parts (1p2w) 15723 | -6/Factory | Spotted B-75 Beast 15854 | -6/Factory | Destroyed B-75 Beast 15862 | -6/Factory | Lost 3 parts (1u2w) 16321 | -6/Factory | Sucked down chute 16321 | -6/Factory | Entered Waste 16332 | -6/Waste | Spotted C-40 Crusher 16336 | -6/Waste | EMP discharged 16336 | -6/Waste | Spotted C-40 Crusher 16336 | -6/Waste | Spotted C-40 Crusher 16345 | -6/Waste | Spotted C-40 Crusher 16345 | -6/Waste | Spotted C-40 Crusher 16348 | -6/Waste | Spotted C-40 Crusher 16349 | -6/Waste | Discovered new exit (range 16) 16359 | -6/Waste | Entered Factory 16619 | -6/Factory | Incoming investigation squad redirected 16621 | -6/Factory | Build established: Hacker-Skirmisher 16674 | -6/Factory | Incoming investigation squad redirected 16683 | -6/Factory | Fabricated Adv. ECM Suite? 16709 | -6/Factory | First assault squad dispatched 16736 | -6/Factory | Incoming assault squad redirected 16987 | -6/Factory | Incoming investigation squad redirected 17151 | -6/Factory | Build established: Hacker-Mutant 17412 | -6/Factory | Discovered exit to Factory (range 7) 17590 | -6/Factory | Entered another Factory area 17590 | -5/Factory | Accompanied by 2 allies 17590 | -5/Factory | Evolved 2 slots: Power x1, Propulsion x1 18209 | -5/Factory | Build established: Machinist-Mutant 18271 | -5/Factory | Discovered new exit (range 6) 18297 | -5/Factory | Fabricated Particle Reactor (x2) 18387 | -5/Factory | Found Prototype Launcher 18387 | -5/Factory | Identified Tesla Bomb Launcher 19024 | -5/Factory | Incoming investigation squad redirected 19057 | -5/Factory | Incoming investigation squad redirected 19122 | -5/Factory | Incoming investigation squad redirected 19124 | -5/Factory | Build established: Hacker-Mutant 19211 | -5/Factory | Fabricated M-28 Smith (x1) 19522 | -5/Factory | Discovered new exit (range 15) 19522 | -5/Factory | Identified exit to Factory 19686 | -5/Factory | Incoming investigation squad redirected 19786 | -5/Factory | Fabricated Com. HERF Cannon (x1) 20139 | -5/Factory | Found Faulty Exp. Targeting Computer 20192 | -5/Factory | Repaired Broken Imp. Gyrokinetic Inverter 20240 | -5/Factory | Build established: Mutant 20303 | -5/Factory | Incoming investigation squad redirected 20405 | -5/Factory | Fabricated Lgt. Neutrino Core (x1) 20483 | -5/Factory | Incoming investigation squad redirected 20588 | -5/Factory | Fabricated Com. HERF Cannon (x1) 20704 | -5/Factory | Build established: Machinist-Mutant 21306 | -5/Factory | Entered another Factory area 21306 | -4/Factory | Evolved 2 slots: Utility x2 21604 | -4/Factory | First assault squad dispatched 21721 | -4/Factory | Incoming assault squad redirected 21806 | -4/Factory | Lost 3 parts (1n2u) 21962 | -4/Factory | Incoming investigation squad redirected 22374 | -4/Factory | Incoming investigation squad redirected 22570 | -4/Factory | Fabricated Adv. Hacking Suite (x1) 22761 | -4/Factory | Discovered new exit (range 21) 22833 | -4/Factory | Identified exit to Research 23217 | -4/Factory | Discovered new exit (range 18) 23502 | -4/Factory | Entered Research 23502 | -3/Research | Evolved 2 slots: Utility x2 23621 | -3/Research | Incoming investigation squad redirected 23697 | -3/Research | Identified exit to Garrison 23697 | -3/Research | Entered Garrison 23734 | -3/Garrison | Expanded RIF knowledge: Alert ID Control 23805 | -3/Garrison | Discovered new exit (range 10) 23809 | -3/Garrison | Entered Research 23862 | -3/Research | Found Prototype Device 23862 | -3/Research | Identified Exp. Thermal Defense Suite 24006 | -3/Research | Discovered new exit (range 8) 24071 | -3/Research | Lost 8 parts (1p1n3u3w) 24232 | -3/Research | Lost 6 parts (2p1n1u2w) 24307 | -3/Research | Core integrity fell below 50% 24385 | -3/Research | System corruption reached 10% 24511 | -3/Research | Identified exit to Garrison 24511 | -3/Research | Entered Garrison 24860 | -3/Garrison | Build established: Scavenger-Mutant 24870 | -3/Garrison | Triggered checkpoint 24874 | -3/Garrison | Expanded RIF knowledge: Patrol Navigation 25064 | -3/Garrison | Discovered new exit (range 11) 25076 | -3/Garrison | System corruption reached 30% 25120 | -3/Garrison | Entered Research 25120 | -2/Research | Evolved 2 slots: Propulsion x1, Utility x1 25290 | -2/Research | Identified exit to Garrison 25290 | -2/Research | Entered Garrison 25303 | -2/Garrison | Expanded RIF knowledge: Program Shield 25356 | -2/Garrison | Garrison Relay disabled 25419 | -2/Garrison | Crushed by falling debris 25420 | -2/Garrison | System corruption reached 10% 25450 | -2/Garrison | Lost 3 parts (1n2u) 25481 | -2/Garrison | Discovered new exit (range 8) 25493 | -2/Garrison | Entered Access 25493 | -1/Access | Evolved 2 slots: Propulsion x1, Weapon x1 25759 | -1/Access | Found Gamma Bomb Array 26013 | -1/Access | Build established: Bothacker-Mutant 26181 | -1/Access | System corruption reached 10% 26243 | -1/Access | Lost 14 parts (3p3n6u2w) 26289 | -1/Access | Found Prototype Device 26289 | -1/Access | Identified System Purifier 26302 | -1/Access | Discovered new exit (range 6) 26304 | *** | Escaped! Last Messages --------------- 26281_ Adv. Weight Redist. System fried. 26281_ Transport Network Coupler fried. 26281_ A-15 Conveyor destroyed. 26286_ Acquired 47 matter. 26287_ Acquired Prototype Energy Gun. 26287_ Identified Cld. Phase Gun. 26289_ Acquired Prototype Device. 26289_ Identified System Purifier. 26289_ Malfunction: Energy drain (-38). 26291_ Dropped Faulty System Purifier. 26292_ Acquired Prototype Device. 26292_ Identified Quantum Shading Machine. 26292_ Malfunction: Cld. Phase Gun damaged (-31). 26293_ Dropped Faulty Quantum Shading Machine. 26294_ 5AP3XI>Open(Door) Sealed Barrier opened. 26302_ The Access Shell folds into the floor. 26302_ EXIT=FOUND Map ----- +----------------------------------------------------+ | ?????????????????????????????????????????????????? | | ?????????????????????????????????????????????????? | | ?????????????????????????????????????????????????? | | ?????????????????????????????????????????????????? | | ?????????????????????????????????????????????????? | | ?????????????????????????????????????????????????? | | ?????????????????????????????????????????????????? | | ?????????????????????????????????????????????????? | | ?????????????????????????????????????????????????? | | ?????????????????????????????????????????????????? | | ?????????????????????????????????????????????????? | | ?????????????????????????????????????????????????? | | ?????????????????????????????????????????????????? | | ??????????# ?????????????????????????????????????? | | ??????????# ????????????????????????????????????? | | ??????????# ????????????????????????????????????? | | ??????????# ????????????????????????????????????? | | ??????????# ????????????????????????????????????? | | ??????????# ??????###???????????????????????????? | | ??????????# ####### ##########??????????????????? | | ??????????# """T""" "??????????????????? | | ??????????# """ """ "????BB????????????? | | ??????????# "????BB????????????? | | ????####### "??????????????????? | | ???? [ ## "" "??????????????????? | | ???? ## @" "??????????????????? | | ??? ## "??????????????????? | | ? ?" ## "????BB????????????? | | ? "" ## "????BB????????????? | | """""" ##! "??????????????????? | | """""" #"!Y####### ##########??????????????????? | | "" ##% ##????###???????????????????????????? | | "" #"!!"#??????????????????????????????????? | | ## # ?????????????????????????????? | | ## # #??????????????????????????? | | ## +? #??????????????????????????? | | #######+### #?? #??????????????????????????? | | # #??? #??????????????????????????? | | # #???/]! #??????????????????????????? | | # ########????!! #??????????????????????????? | | # #????????????! #?????????????????????????? | | # #????????????? ##?????????????????????????? | | + #?????????????###??????????????????????????? | | # #??????????????????????????????????????????? | | # #??????????????????????????????????????????? | | # #??????????????????????????????????????????? | | # #??????????????????????????????????????????? | | # #??????????????????????????????????????????? | | # #??????????????????????????????????????????? | | #### +??????????????????????????????????????????? | +----------------------------------------------------+ Best States ------------- Heat Dissipation 109 Coolant Potential 65 Energy Generation 54 Energy Capacity 875 Matter Stores 300 Matter Capacity 300 Sight Range 23 Terrain Scan Density 10 ECM Strength 2 Jamming Range 16 Cloak Strength 2 Power Amplification 30 Corruption Block 30 Evasion (%) 56 Targeting Accuracy 16 Core Analysis 6 Recoil Reduction 2 Energy Filtering 50 Particle Charging 25 Offensive Hacking 34 Defensive Hacking 36 Relay Coupler Types 3 Relay Coupler Value 52 Item Schematics ----------------- Hacking Suite | -8/Materials | Hacked System Shield | -8/Materials | Hacked Adv. System Restoration Module | -7/Factory | Scanalyzed Hyp. Gauss Cannon | -7/Factory | Scanalyzed Arc Projector | -7/Factory | Hacked System Restoration Module | -7/Factory | Hacked Antigrav System | -7/Factory | Hacked Imp. System Restoration Module | -7/Factory | Hacked Magnetic Acceleration Cannon | -7/Factory | Hacked Adv. ECM Suite | -7/Factory | Hacked Prc. Shock Rifle | -7/Factory | Scanalyzed Remote Datajack | -7/Factory | Scanalyzed Proton Cannon | -7/Factory | Hacked Combat Drone Bay | -7/Data Miner | Free Lgt. Regenerative Plating | -7/Data Miner | Free Cld. Cesium-ion Thruster | -7/Data Miner | Free Exp. Propulsion Shielding | -7/Data Miner | Free Ion Burst Cannon | -7/Data Miner | Free Field Propulsion Drive | -7/Data Miner | Free Recoil Nullifier | -7/Data Miner | Free Variable Charge Gun | -7/Data Miner | Free Phase Shifter | -7/Data Miner | Free Imp. Hacking Suite | -6/Factory | Hacked Cloaking Device | -6/Factory | Hacked Plasma Sword | -6/Factory | Hacked Imp. Gyrokinetic Inverter | -6/Factory | Scanalyzed Transmission Jammer | -6/Factory | Scanalyzed Adv. Transmission Jammer | -6/Factory | Hacked Adv. Particle Charger | -6/Factory | Scanalyzed Hyb. Fission Core | -6/Factory | Extracted Phase Cannon | -6/Factory | Extracted Power Shielding | -6/Factory | Extracted Plasma Cannon | -6/Factory | Extracted Com. Battery | -6/Factory | Extracted Sml. Battery | -6/Factory | Extracted Plasma Cutter | -6/Factory | Extracted Nuclear Pulse Thruster | -6/Factory | Extracted Focal Shield | -6/Factory | Extracted Coil Gun | -6/Factory | Extracted Imp. Trap Scanner | -6/Factory | Extracted Dynamic Insulation System | -6/Factory | Extracted Adv. Terrain Scanner | -6/Factory | Extracted Salvage Targeting Computer | -6/Factory | Extracted ECM Suite | -6/Factory | Extracted Imp. Medium Treads | -6/Factory | Extracted Imp. Carbon-fiber Leg | -6/Factory | Extracted Remote Shield | -6/Factory | Extracted Gatling Laser | -6/Factory | Extracted Arm. Wheel | -6/Factory | Extracted Smartbomb Launcher | -6/Factory | Hacked Adv. Hacking Suite | -5/Factory | Hacked Imp. Arc Projector | -5/Factory | Scanalyzed Imp. Proton Missile Launcher | -5/Factory | Scanalyzed Imp. Lightning Gun | -5/Factory | Scanalyzed Adv. Cooling System | -5/Factory | Hacked Lrn. Proton Cannon | -5/Factory | Hacked Com. HERF Cannon | -5/Factory | Hacked Fusion Reactor | -5/Factory | Scanalyzed Lgt. Neutrino Core | -5/Factory | Scanalyzed Gyrokinetic Inverter | -5/Factory | Scanalyzed Adv. Corruption Screen | -5/Factory | Hacked Tesla Bomb Launcher | -5/Factory | Hacked Cld. Fission Core | -4/Factory | Scanalyzed Robot Schematics ------------------ O-16 Technician | -10/Materials | Hacked M-28 Smith | -8/Materials | Hacked I-25 Savior | -7/Factory | Hacked W-25 Informer | -7/Data Miner | Free H-66 Slayer | -7/Data Miner | Free B-48 Gladiator | -7/Data Miner | Free G-47 Trooper | -7/Data Miner | Free R-10 Processor | -7/Data Miner | Free Y-64 Sentinel | -7/Data Miner | Free Fabricated ------------ Hyp. Gauss Cannon | x2 | -7/Factory Antigrav System | x2 | -7/Factory Arc Projector | x1 | -7/Factory Imp. Gyrokinetic Inverter | x2 | -6/Factory | Preloaded Cloaking Device | x1 | -6/Factory R-06 Scavenger | x1 | -6/Factory | Preloaded Imp. Gyrokinetic Inverter | x2 | -6/Factory Adv. ECM Suite | x1 | -6/Factory Particle Reactor | x2 | -5/Factory | Preloaded M-28 Smith | x1 | -5/Factory Com. HERF Cannon | x1 | -5/Factory Lgt. Neutrino Core | x1 | -5/Factory | Preloaded Com. HERF Cannon | x1 | -5/Factory Adv. Hacking Suite | x1 | -4/Factory Alien Tech Used ----------------- None Achievements -------------- Treasure Hunter Challenges ------------ None Game ------ Seed TeslaFrostDatajack Manual? 0 Play Time 08:23:23 Cumulative 330.5 hours Start 2023.09.17 @ 15:33:53 End 2023.09.18 @ 00:54:24 Sessions 1 Manual Loads 0 Difficulty Rogue Special Mode None Game No. 207 Rogue 204 Adventurer 3 Explorer 0 Win Type 0 Total 6 Types 5/0/1/0/0/0/0/0/0 Lore% 72 Gallery% 76 Achievement% 64 Wizard Run 0 Options --------- ASCII 0 Keyboard 0 Movement Numpad Keybinds 0 Fullscreen 1 Font 18/SmallcapsGlow Map View 76x50 Tactical HUD 1 Map Filters NONE Filters NONE Steam 1 RUN: 6d30d386-e30e-4a04-8b14-3ffee8db71c8